fUSD/lending_fUSD_20251103
["ID","MTS","AMOUNT","RATE_DAILY","PERIOD"]
[392961321,1762181443203,-500.0,0.00021918,4]
[392961323,1762181443213,-500.0,0.00021977,2]
[392961325,1762181443222,-500.0,0.00021977,2]
[392961327,1762181443233,-250.0,0.00022055,2]
[392961329,1762181443242,-500.0,0.00022055,2]
[392961331,1762181443253,-150.0,0.00022055,2]
[392961333,1762181443263,-150.0,0.00022055,2]
[392961335,1762181443273,-500.0,0.00022192,2]
[392961337,1762181443282,-150.0,0.00022192,2]
[392961339,1762181443291,-425.6840443,0.00022229,2]
[392961340,1762181443300,-446.38325789,0.00022263,2]
[392961342,1762181443310,-500.0,0.00022329,2]
[392961344,1762181443320,-150.0,0.00022329,2]
[392961346,1762181443330,-500.0,0.00022466,2]
[392961348,1762181443340,-222.0,0.00022466,2]
[392961350,1762181443349,-500.0,0.00022603,2]
[392961352,1762181443361,-500.0,0.0002274,2]
[392961354,1762181443370,-500.0,0.00022877,2]
[392961356,1762181443380,-400.0,0.00023,2]
[392961358,1762181443390,-224.94406514,0.00023014,2]
[392961360,1762181443400,-502.06124753,0.00023183,2]
[392961362,1762181443410,-500.0,0.00023183,2]
[392961364,1762181443419,-500.0,0.0002321,2]
[392961366,1762181443428,-500.0,0.00023433,2]
[392961367,1762181443438,-446.38325789,0.00023569,2]
[392961370,1762181443449,-157.42867594,0.00023626,2]
[392961372,1762181443459,-5949.119131,0.00023635,2]
[392961373,1762181443469,-1000.0,0.00023928,2]
[392961375,1762181443478,-150.0,0.00023961,2]
[392961377,1762181443488,-2000.0,0.000241,2]
[392961379,1762181443498,-816.32,0.00024658,2]
[392961381,1762181443507,-579.51367004,0.000247,3]
[392961383,1762181443517,-500.0,0.00024799,2]
[392961385,1762181443527,-75638.2830101,0.000248,3]
[392961387,1762181443536,-1000.0,0.00024825,2]
[392961389,1762181443546,-446.38325789,0.00024875,2]
[392961391,1762181443555,-9344.93,0.00024943,2]
[392961393,1762181443565,-450.0,0.00025,2]
[392961395,1762181443574,-800.0,0.00025211,7]
[392961397,1762181443583,-500.0,0.00025257,7]
[392961399,1762181443593,-500.0,0.00025306,7]
[392961401,1762181443605,-800.0,0.00025379,7]
[392961402,1762181443615,-800.0,0.00025389,7]
[392961404,1762181443625,-500.0,0.0002539,7]
[392961406,1762181443634,-500.0,0.00025414,7]
[392961407,1762181443644,-500.0,0.00025426,7]
[392961408,1762181443653,-800.0,0.00025435,7]
[392961409,1762181443663,-800.0,0.00025474,7]
[392961410,1762181443674,-10804.58,0.00025546,2]
[392961411,1762181443684,-500.0,0.00025561,7]
[392961412,1762181443694,-5949.119131,0.00025578,2]
[392961413,1762181443704,-500.0,0.00025588,7]
[392961414,1762181443714,-800.0,0.00025638,7]
[392961415,1762181443723,-800.0,0.0002572,7]
[392961416,1762181443731,-1000.0,0.00025723,2]
[392961417,1762181443740,-500.0,0.00025864,7]
[392961418,1762181443749,-800.0,0.00026014,7]
[392961419,1762181443759,-165.19797327,0.00026022,7]
[392961420,1762181443769,-1000.0,0.00026027,2]
[392961421,1762181443779,-446.38325789,0.00026182,2]
[392961422,1762181443788,-800.0,0.00026243,7]
[392961423,1762181443798,-176.7175,0.00026301,2]
[392961424,1762181443807,-800.0,0.00026301,7]
[392961425,1762181443817,-1000.0,0.00026301,2]
[392961426,1762181443827,-800.0,0.00026316,7]
[392961427,1762181443836,-1000.0,0.00026575,2]
[392961428,1762181443846,-500.0,0.00026592,7]
[392961429,1762181443861,-1000.0,0.0002662,2]
[392961430,1762181443875,-800.0,0.00026699,7]
[392961431,1762181443886,-400.0,0.00026849,2]
[392961432,1762181443896,-400.0,0.00026849,2]
[392961433,1762181443907,-400.0,0.00026849,2]
[392961434,1762181443916,-400.0,0.00026849,2]
[392961435,1762181443926,-284.91371098,0.00026849,2]
[392961436,1762181443935,-1000.0,0.00026849,2]
[392961437,1762181443945,-500.0,0.00027,2]
[392961438,1762181443955,-500.0,0.00027023,7]
[392961439,1762181443965,-1000.0,0.00027123,2]
[392961440,1762181443975,-500.0,0.0002717,7]
[392961441,1762181443984,-403.91008092,0.00027397,2]
[392961442,1762181443993,-1427.95,0.00027397,2]
[392961443,1762181444003,-1111.05,0.00027397,16]
[392961444,1762181444014,-816.32,0.00027397,2]
[392961445,1762181444030,-1000.0,0.00027397,2]
[392961446,1762181444047,-500.0,0.0002744,7]
[392961447,1762181444056,-513.42518897,0.00027464,7]
[392961448,1762181444066,-1000.0,0.00027517,2]
[392961449,1762181444075,-776.50629282,0.00027521,7]
[392961450,1762181444084,-5949.119131,0.00027521,2]
[392961451,1762181444094,-800.0,0.00027564,7]
[392961452,1762181444104,-197.0,0.000276,2]
[392961453,1762181444113,-37819.141505,0.00027605,3]
[392961454,1762181444123,-800.0,0.00027615,7]
[392961455,1762181444132,-500.0,0.00027636,7]
[392961456,1762181444141,-199.0,0.00027671,7]
[392961457,1762181444151,-1000.0,0.00027671,2]
[392961458,1762181444160,-2000.0,0.000278,2]
[392961459,1762181444169,-199.0,0.00027945,8]
[392961460,1762181444178,-1000.0,0.00027945,2]
[392961461,1762181444188,-500.0,0.00028001,7]
[392961462,1762181444197,-500.0,0.00028055,2]
[392961463,1762181444209,-150.0,0.00028159,7]
[392961464,1762181444219,-150.0,0.00028159,7]
[392961465,1762181444228,-150.0,0.00028159,7]
[392961466,1762181444237,-150.0,0.00028159,7]
[392961467,1762181444247,-156.7604615,0.00028159,7]
[392961468,1762181444256,-150.0,0.00028159,7]
[392961469,1762181444265,-150.0,0.00028159,7]
[392961470,1762181444275,-150.0,0.00028159,7]
[392961471,1762181444286,-150.0,0.00028159,7]
[392961472,1762181444296,-150.00000001,0.00028159,7]
[392961473,1762181444305,-500.0,0.00028164,2]
[392961474,1762181444314,-500.0,0.00028168,7]
[392961475,1762181444324,-500.0,0.00028175,7]
[392961476,1762181444333,-199.0,0.00028219,9]
[392961477,1762181444342,-1000.0,0.00028219,2]
[392961478,1762181444352,-800.0,0.00028466,7]
[392961479,1762181444362,-199.0,0.00028493,10]
[392961480,1762181444371,-1000.0,0.00028493,2]
[392961481,1762181444380,-500.0,0.00028611,7]
[392961482,1762181444389,-500.0,0.00028674,7]
[392961483,1762181444398,-5056.06794375,0.00028755,7]
[392961484,1762181444408,-199.0,0.00028767,11]
[392961485,1762181444418,-1000.0,0.00028767,2]
[392961486,1762181444427,-500.0,0.00028892,7]
[392961487,1762181444437,-550.0,0.00029,2]
[392961488,1762181444446,-1004.54297002,0.00029,2]
[392961489,1762181444455,-353.435,0.00029041,9]
[392961490,1762181444463,-199.0,0.00029041,12]
[392961491,1762181444472,-1000.0,0.00029041,2]
[392961492,1762181444482,-500.0,0.00029047,7]
[392961493,1762181444491,-150.0,0.00029202,7]
[392961494,1762181444501,-2349.0,0.00029232,5]
[392961495,1762181444510,-500.0,0.0002925,7]
[392961496,1762181444519,-500.0,0.00029261,7]
[392961497,1762181444527,-800.0,0.00029313,7]
[392961498,1762181444538,-199.0,0.00029315,13]
[392961499,1762181444547,-1000.0,0.00029315,2]
[392961500,1762181444556,-218.81762333,0.00029325,7]
[392961501,1762181444566,-500.0,0.00029357,7]
[392961502,1762181444575,-800.0,0.00029386,7]
[392961503,1762181444584,-500.0,0.00029393,7]
[392961504,1762181444593,-1905.97,0.00029449,2]
[392961505,1762181444602,-5949.119131,0.00029464,2]
[392961506,1762181444611,-500.0,0.00029517,7]
[392961507,1762181444620,-500.0,0.00029556,7]
[392961508,1762181444630,-199.0,0.00029589,14]
[392961509,1762181444639,-1000.0,0.00029589,2]
[392961510,1762181444648,-800.0,0.0002964,7]
[392961511,1762181444657,-260.62,0.00029676,23]
[392961512,1762181444667,-5038.545,0.00029676,23]
[392961513,1762181444676,-800.0,0.00029743,7]
[392961514,1762181444686,-500.0,0.00029757,7]
[392961515,1762181444695,-800.0,0.00029847,7]
[392961516,1762181444704,-199.0,0.00029863,15]
[392961517,1762181444714,-1000.0,0.00029863,2]
[392961518,1762181444723,-500.0,0.00029886,7]
[392961519,1762181444732,-200.0,0.00029922,2]
[392961520,1762181444741,-889.17316318,0.00029931,7]
[392961521,1762181444752,-250.0,0.0003,7]
[392961522,1762181444760,-169.0,0.0003,14]
[392961523,1762181444769,-193.0,0.0003,14]
[392961524,1762181444778,-1004.0,0.0003,7]
[392961525,1762181444788,-509.70916532,0.00030033,7]
[392961526,1762181444797,-800.0,0.00030076,7]
[392961527,1762181444806,-37819.141505,0.00030117,3]
[392961528,1762181444816,-1000.0,0.00030136,2]
[392961529,1762181444825,-1000.0,0.00030136,2]
[392961530,1762181444834,-500.0,0.00030136,2]
[392961531,1762181444843,-876.03,0.00030136,2]
[392961532,1762181444852,-500.0,0.00030136,10]
[392961533,1762181444863,-500.0,0.00030136,2]
[392961534,1762181444876,-5661.49,0.00030136,2]
[392961535,1762181444886,-500.0,0.00030136,2]
[392961536,1762181444895,-323.64,0.00030136,2]
[392961537,1762181444905,-500.0,0.00030136,2]
[392961538,1762181444915,-300.0,0.00030136,2]
[392961539,1762181444924,-199.0,0.00030136,16]
[392961540,1762181444933,-500.0,0.00030136,2]
[392961541,1762181444942,-150.0,0.00030136,2]
[392961542,1762181444951,-224.14719722,0.00030136,2]
[392961543,1762181444961,-500.0,0.00030136,2]
[392961544,1762181444970,-816.32,0.00030137,2]
[392961545,1762181444979,-1000.0,0.00030137,2]
[392961546,1762181444988,-500.0,0.00030137,2]
[392961547,1762181444997,-500.0,0.00030137,2]
[392961548,1762181445006,-500.0,0.00030137,2]
[392961549,1762181445015,-500.0,0.00030137,2]
[392961550,1762181445024,-500.0,0.00030137,2]
[392961551,1762181445033,-500.0,0.00030137,2]
[392961552,1762181445042,-555.94540045,0.00030137,2]
[392961553,1762181445051,-500.0,0.00030137,2]
[392961554,1762181445060,-500.0,0.00030137,2]
[392961555,1762181445069,-500.0,0.00030137,2]
[392961556,1762181445078,-500.0,0.00030137,2]
[392961557,1762181445087,-500.0,0.00030137,2]
[392961558,1762181445097,-500.0,0.00030137,2]
[392961559,1762181445107,-500.0,0.00030137,2]
[392961560,1762181445116,-500.0,0.00030137,2]
[392961561,1762181445125,-500.0,0.00030137,2]
[392961562,1762181445134,-500.0,0.00030137,2]
[392961563,1762181445144,-500.0,0.00030137,2]
[392961564,1762181445153,-500.0,0.00030137,2]
[392961565,1762181445162,-500.0,0.00030137,2]
[392961566,1762181445171,-500.0,0.00030137,2]
[392961567,1762181445180,-500.0,0.00030137,2]
[392961568,1762181445190,-500.0,0.00030137,2]
[392961569,1762181445363,-500.0,0.00030137,2]
[392961570,1762181445375,-500.0,0.00030137,2]
[392961571,1762181445384,-500.0,0.00030137,2]
[392961572,1762181445394,-500.0,0.00030137,2]
[392961573,1762181445404,-500.0,0.00030137,2]
[392961574,1762181445413,-500.0,0.00030137,2]
[392961575,1762181445422,-500.0,0.00030137,2]
[392961577,1762181445432,-500.0,0.00030137,2]
[392961579,1762181445441,-500.0,0.00030137,2]
[392961580,1762181445451,-500.0,0.00030137,2]
[392961582,1762181445460,-500.0,0.00030137,2]
[392961584,1762181445469,-500.0,0.00030137,2]
[392961586,1762181445478,-500.0,0.00030137,2]
[392961587,1762181445488,-500.0,0.00030137,2]
[392961588,1762181445497,-253.50860405,0.00030137,2]
[392961589,1762181445506,-500.0,0.00030137,2]
[392961590,1762181445515,-500.0,0.00030137,2]
[392961591,1762181445524,-500.0,0.00030137,2]
[392961592,1762181445533,-500.0,0.00030137,2]
[392961593,1762181445542,-500.0,0.00030137,2]
[392961594,1762181445551,-500.0,0.00030137,2]
[392961595,1762181445560,-500.0,0.00030137,2]
[392961596,1762181445570,-500.0,0.00030137,2]
[392961597,1762181445579,-500.0,0.00030137,2]
[392961598,1762181445588,-500.0,0.00030137,2]
[392961599,1762181445598,-500.0,0.00030137,2]
[392961600,1762181445608,-500.0,0.00030137,2]
[392961601,1762181445617,-500.0,0.00030137,2]
[392961602,1762181445626,-500.0,0.00030137,2]
[392961603,1762181445635,-300.0,0.00030137,2]
[392961604,1762181445644,-500.0,0.00030137,2]
[392961605,1762181445653,-500.0,0.00030137,2]
[392961606,1762181445662,-500.0,0.00030137,2]
[392961607,1762181445671,-500.0,0.00030137,2]
[392961608,1762181445680,-1000.0,0.00030139,2]
[392961609,1762181445689,-593.12438034,0.00030139,2]
[392961610,1762181445698,-800.0,0.00030208,7]
[392961611,1762181445707,-250.0,0.00030212,2]
[392961612,1762181445716,-150.0,0.00030245,7]
[392961613,1762181445725,-707.15475048,0.0003028,7]
[392961614,1762181445734,-276.85813079,0.000304,3]
[392961615,1762181445743,-1003.29653754,0.0003041,2]
[392961616,1762181445752,-802.71147831,0.0003041,2]
[392961618,1762181445761,-500.0,0.0003041,2]
[392961620,1762181445770,-876.03,0.0003041,2]
[392961622,1762181445779,-500.0,0.0003041,10]
[392961624,1762181445789,-500.0,0.0003041,2]
[392961626,1762181445798,-5661.49,0.0003041,2]
[392961628,1762181445807,-500.0,0.0003041,2]
[392961631,1762181445816,-323.64,0.0003041,2]
[392961633,1762181445825,-500.0,0.0003041,2]
[392961636,1762181445834,-300.0,0.0003041,2]
[392961638,1762181445843,-199.0,0.0003041,17]
[392961639,1762181445852,-159.41955969,0.0003041,2]
[392961641,1762181445861,-150.0,0.0003041,2]
[392961643,1762181445870,-500.0,0.0003041,2]
[392961645,1762181445879,-1000.0,0.00030411,2]
[392961647,1762181445889,-800.0,0.00030424,7]
[392961649,1762181445898,-800.0,0.00030445,7]
[392961651,1762181445907,-800.0,0.00030454,7]
[392961653,1762181445916,-2000.0,0.00030506,2]
[392961654,1762181445925,-1166.0,0.00030561,2]
[392961656,1762181445934,-1000.0,0.0003059,2]
[392961658,1762181445944,-37819.141505,0.00030674,3]
[392961660,1762181445952,-500.0,0.00030684,2]
[392961662,1762181445962,-876.03,0.00030684,2]
[392961664,1762181445975,-500.0,0.00030684,10]
[392961666,1762181445984,-500.0,0.00030684,2]
[392961668,1762181445993,-5661.49,0.00030684,2]
[392961670,1762181446002,-500.0,0.00030684,2]
[392961672,1762181446012,-323.64,0.00030684,2]
[392961674,1762181446021,-500.0,0.00030684,2]
[392961676,1762181446030,-300.0,0.00030684,2]
[392961678,1762181446040,-199.0,0.00030684,18]
[392961680,1762181446049,-150.0,0.00030684,2]
[392961682,1762181446058,-500.0,0.00030684,2]
[392961684,1762181446067,-1000.0,0.00030685,2]
[392961686,1762181446076,-500.0,0.00030728,7]
[392961688,1762181446085,-500.0,0.00030828,7]
[392961690,1762181446095,-500.0,0.00030829,7]
[392961692,1762181446104,-1166.0,0.00030876,2]
[392961694,1762181446113,-500.0,0.00030958,2]
[392961696,1762181446123,-876.03,0.00030958,2]
[392961698,1762181446132,-151.50300561,0.00030958,10]
[392961700,1762181446141,-500.0,0.00030958,2]
[392961702,1762181446151,-5661.49,0.00030958,2]
[392961704,1762181446160,-500.0,0.00030958,2]
[392961706,1762181446170,-323.64,0.00030958,2]
[392961709,1762181446180,-500.0,0.00030958,2]
[392961711,1762181446190,-300.0,0.00030958,2]
[392961713,1762181446204,-199.0,0.00030958,19]
[392961715,1762181446214,-150.0,0.00030958,2]
[392961716,1762181446223,-500.0,0.00030958,2]
[392961718,1762181446232,-1000.0,0.00030959,2]
[392961720,1762181446242,-276.85813079,0.0003098,3]
[392961722,1762181446252,-75638.2830101,0.0003099,3]
[392961724,1762181446260,-276.85813079,0.0003099,3]
[392961726,1762181446270,-188.08298846,0.0003099,2]
[392961729,1762181446282,-600.0,0.00031,2]
[392961730,1762181446292,-1000.0,0.00031,2]
[392961731,1762181446301,-1000.0,0.00031,2]
[392961732,1762181446311,-1000.0,0.00031,2]
[392961733,1762181446320,-350.6924,0.00031,2]
[392961734,1762181446330,-250.0,0.00031,7]
[392961735,1762181446339,-74712.41201469,0.00031,2]
[392961736,1762181446355,-4980.47092006,0.00031,2]
[392961737,1762181446365,-500.0,0.00031,7]
[392961738,1762181446374,-614.46695417,0.00031028,2]
[392961739,1762181446384,-500.0,0.00031091,7]
[392961740,1762181446393,-152.85254648,0.00031187,2]
[392961741,1762181446403,-1558.92942255,0.0003119,2]
[392961742,1762181446447,-200.0,0.00019247,2]
[392961743,1762181446456,-905.0,0.00019247,2]
[392961744,1762181446465,-150.0,0.00022247,2]
[392961745,1762181446475,-446.38325789,0.00027488,2]
[392961746,1762181446484,-150.0,0.0002794,3]
[392961747,1762181446494,-300.0,0.0003018,3]
[392961748,1762181446503,-525.15281745,0.0003119,2]
[392961749,1762181446512,-1166.0,0.00031191,2]
[392961750,1762181446521,-2084.08225,0.000312,2]
[392961751,1762181446531,-800.0,0.00031215,7]
[392961752,1762181446540,-151.0,0.00031229,7]
[392961753,1762181446549,-500.0,0.00031232,2]
[392961754,1762181446559,-876.03,0.00031232,2]
[392961755,1762181446568,-500.0,0.00031232,2]
[392961756,1762181446578,-5661.49,0.00031232,2]
[392961757,1762181446588,-500.0,0.00031232,2]
[392961758,1762181446597,-323.64,0.00031232,2]
[392961759,1762181446607,-500.0,0.00031232,2]
[392961760,1762181446617,-300.0,0.00031232,2]
[392961761,1762181446626,-199.0,0.00031232,20]
[392961762,1762181446636,-150.0,0.00031232,2]
[392961763,1762181446645,-500.0,0.00031232,2]
[392961764,1762181446654,-1000.0,0.00031233,2]
[392961765,1762181446663,-800.0,0.00031238,7]
[392961766,1762181446673,-152.85254646,0.00031264,2]
[392961767,1762181446683,-552.90076235,0.00031287,3]
[392961769,1762181446691,-151276.56602,0.00031287,3]
[392961770,1762181446701,-830.57439237,0.00031287,3]
[392961771,1762181446710,-150.0,0.00031288,7]
[392961772,1762181446719,-150.0,0.00031288,7]
[392961773,1762181446728,-150.0,0.00031288,7]
[392961774,1762181446737,-150.0,0.00031288,7]
[392961775,1762181446747,-150.0,0.00031288,7]
[392961776,1762181446756,-174.80399375,0.00031288,7]
[392961777,1762181446765,-97623.26661072,0.00031297,3]
[392961778,1762181446778,-442.84287596,0.00031297,3]
[392961779,1762181446789,-267.7076,0.00031297,3]
[392961780,1762181446800,-83306.55620638,0.00031297,3]
[392961781,1762181446851,-150.0,0.00030637,3]
[392961782,1762181446864,-203.98236576,0.00031297,3]
[392961783,1762181446876,-7251.35186618,0.00031297,3]
[392961784,1762181446886,-553.71626158,0.00031297,3]
[392961785,1762181446895,-9004.98079084,0.00031307,7]
[392961787,1762181446907,-50995.01920916,0.00031307,7]
[392961789,1762181446916,-372034.47805976,0.00031307,7]
[392961791,1762181446927,-11566.89907138,0.00031307,7]
[392961792,1762181462235,195.0,0.00021171,120]
[392961793,1762181462390,195.0,0.00024021,120]
[392961796,1762181484403,500.0,0.00014017,2]
[392961797,1762181484452,500.0,0.00014017,2]
[392961798,1762181484514,18.32751274,0.00014017,2]
[392961799,1762181484543,232.64414049,0.00014017,2]
[392961800,1762181486276,239.42235999,0.00014017,2]
[392961802,1762181523828,9527.94349952,0.00013918,2]
[392961803,1762181523857,10000.01,0.00013918,2]
[392961804,1762181523886,10000.01,0.00013918,2]
[392961805,1762181523920,10000.01,0.00013918,2]
[392961806,1762181523953,10000.01,0.00013918,2]
[392961807,1762181523980,10000.01,0.00013918,2]
[392961808,1762181524008,10000.01,0.00013918,2]
[392961809,1762181524036,10000.01,0.00013918,2]
[392961810,1762181524064,10000.01,0.00013918,2]
[392961811,1762181524091,10000.01,0.00013918,2]
[392961812,1762181524560,-303.92547459,0.00013918,2]
[392961813,1762181532616,-301.61317085,0.00013918,2]
[392961815,1762181542623,-8152.32695548,0.00013918,2]
[392961816,1762181542773,-10000.01,0.00013918,2]
[392961817,1762181542901,-10000.01,0.00013918,2]
[392961818,1762181543051,-10000.01,0.00013918,2]
[392961819,1762181544969,-10000.01,0.00013918,2]
[392961820,1762181545078,-10000.01,0.00013918,2]
[392961821,1762181545202,-10000.01,0.00013918,2]
[392961822,1762181545767,-10000.01,0.00013918,2]
[392961823,1762181545961,-10000.01,0.00013918,2]
[392961824,1762181545995,-10000.01,0.00013918,2]
[392961825,1762181546573,-378.23255172,0.00013918,2]
[392961826,1762181548042,-10000.01,0.00013918,2]
[392961827,1762181548143,-10000.01,0.00013918,2]
[392961828,1762181548274,-10000.01,0.00013918,2]
[392961829,1762181548399,-10000.01,0.00013918,2]
[392961830,1762181551206,-10000.01,0.00013918,2]
[392961831,1762181551432,-10000.01,0.00013918,2]
[392961832,1762181551551,-10000.01,0.00013918,2]
[392961833,1762181551683,-10000.01,0.00013918,2]
[392961834,1762181551964,-10000.01,0.00013918,2]
[392961835,1762181552404,-10000.01,0.00013918,2]
[392961836,1762181557006,-230.95778726,0.00013917,2]
[392961837,1762181557035,-238.40532063,0.00013917,2]
[392961838,1762181557064,-435.22059274,0.00013917,2]
[392961839,1762181557098,-500.0,0.00013917,2]
[392961840,1762181557132,-483.77119716,0.00013917,2]
[392961841,1762181557418,-6223.30020442,0.00013918,2]
[392961842,1762181557449,-10000.01,0.00013918,2]
[392961843,1762181557488,-10000.01,0.00013918,2]
[392961844,1762181557506,-10000.01,0.00013918,2]
[392961845,1762181560309,-1200.0,0.00013917,2]
[392961846,1762181560347,-7600.01,0.00013918,2]
[392961847,1762181560463,-10000.01,0.00013918,2]
[392961848,1762181560624,-10000.01,0.00013918,2]
[392961849,1762181560742,-10000.01,0.00013918,2]
[392961850,1762181560856,-10000.01,0.00013918,2]
[392961851,1762181560966,-10000.01,0.00013918,2]
[392961852,1762181564325,-10000.01,0.00013918,2]
[392961853,1762181564505,-10000.01,0.00013918,2]
[392961854,1762181564652,-2487.74185658,0.00013918,2]
[392961855,1762181564677,-5024.52628684,0.00013918,2]
[392961856,1762181574330,1000.0,0.00014,2]
[392961864,1762181693206,10000.01,0.00013818,2]
[392961865,1762181693234,10000.01,0.00013818,2]
[392961866,1762181693262,10000.01,0.00013818,2]
[392961867,1762181693288,10000.01,0.00013818,2]
[392961868,1762181693314,10000.01,0.00013818,2]
[392961869,1762181693343,10000.01,0.00013818,2]
[392961870,1762181693370,10000.01,0.00013818,2]
[392961871,1762181693396,10000.01,0.00013818,2]
[392961872,1762181693422,10000.01,0.00013818,2]
[392961873,1762181693448,10000.01,0.00013818,2]
[392961874,1762181694072,-295.55230744,0.00013818,2]
[392961875,1762181696309,-335.78582908,0.00013818,2]
[392961876,1762181699440,-245.64186354,0.00013818,2]
[392961877,1762181704417,-1200.0,0.00013817,2]
[392961878,1762181707430,-6600.01,0.00013818,2]
[392961879,1762181707536,-10000.01,0.00013818,2]
[392961880,1762181707656,-10000.01,0.00013818,2]
[392961881,1762181707811,-10000.01,0.00013818,2]
[392961882,1762181707959,-10000.01,0.00013818,2]
[392961883,1762181708095,-10000.01,0.00013818,2]
[392961884,1762181708243,-10000.01,0.00013818,2]
[392961885,1762181708381,-10000.01,0.00013818,2]
[392961886,1762181708520,-10000.01,0.00013818,2]
[392961887,1762181708639,-10000.01,0.00013818,2]
[392961888,1762181715507,-164.61317085,0.00013818,2]
[392961889,1762181718099,-10000.01,0.00013818,2]
[392961890,1762181718225,-10000.01,0.00013818,2]
[392961891,1762181718352,-10000.01,0.00013818,2]
[392961892,1762181718388,-161.54081874,0.00013818,2]
[392961893,1762181718470,-10000.01,0.00013818,2]
[392961894,1762181718660,-10000.01,0.00013818,2]
[392961895,1762181718799,-10000.01,0.00013818,2]
[392961896,1762181719099,-10000.01,0.00013818,2]
[392961897,1762181719138,-10000.01,0.00013818,2]
[392961898,1762181719901,-182.27142399,0.00013818,2]
[392961899,1762181721448,-470.48638754,0.00013818,2]
[392961900,1762181725324,-184.58123031,0.00013818,2]
[392961901,1762181726871,-193.04963692,0.00013818,2]
[392961902,1762181728360,-248.89652851,0.00013818,2]
[392961903,1762181729000,-10000.01,0.00013818,2]
[392961904,1762181729135,-10000.01,0.00013818,2]
[392961905,1762181729290,-10000.01,0.00013818,2]
[392961906,1762181729433,-10000.01,0.00013818,2]
[392961907,1762181729570,-10000.01,0.00013818,2]
[392961908,1762181729728,-10000.01,0.00013818,2]
[392961909,1762181729850,-10000.01,0.00013818,2]
[392961910,1762181729966,-10000.01,0.00013818,2]
[392961911,1762181738719,-10000.01,0.00013818,2]
[392961912,1762181738840,-10000.01,0.00013818,2]
[392961913,1762181738983,-10000.01,0.00013818,2]
[392961914,1762181739132,-10000.01,0.00013818,2]
[392961915,1762181739259,-10000.01,0.00013818,2]
[392961916,1762181739400,-10000.01,0.00013818,2]
[392961917,1762181739583,-917.16080308,0.00013818,2]
[392961918,1762181813265,1766.409,0.00013818,2]
[392961920,1762182020889,162.40641728,0.00013,2]
[392961991,1762182638274,-214.42,0.00015815,2]
[392961992,1762182638285,-180.55,0.00015815,2]
[392961993,1762182638295,-195.0,0.00015819,2]
[392961994,1762182638305,-230.75916712,0.00015824,2]
[392962066,1762182640244,-69.24083288,0.00015824,2]
[392962067,1762182640254,-231.11913626,0.00015833,2]
[392962068,1762182640266,-68.88086374,0.00015833,2]
[392962069,1762182640276,-195.0,0.00015842,2]
[392962070,1762182640285,-195.0,0.00015851,2]
[392962071,1762182640295,-250.0,0.00015851,2]
[392962072,1762182640305,-210.8865949,0.00015987,2]
[392962073,1762182640314,-318.20713335,0.00016087,2]
[392962074,1762182640324,-415.603245,0.00016564,2]
[392962075,1762182640334,-250.0,0.00017,2]
[392962076,1762182640343,-477.5520043,0.00017026,2]
[392962077,1762182640353,-318.19185912,0.0001703,2]
[392962078,1762182640369,-485.80814088,0.0001703,2]
[392962079,1762182640379,-425.6840443,0.0001714,2]
[392962080,1762182640388,-579.51367003,0.00017296,2]